bitfinex/quotes_SOLUSD_20220117
["timestamp","ask_amount","ask_price","bid_price","bid_amount"]
[1642458888297,1.67638949,139.4,139.3,0.25]
[1642458888298,1.93638949,139.4,139.3,0.25]
[1642458888498,12.70148949,139.4,139.3,0.25]
[1642458889500,12.70148949,139.4,139.3,10.7644]
[1642458890805,12.70148949,139.4,139.31,0.25]
[1642458891005,1.93638949,139.4,139.31,11.0138]
[1642458893806,1.93638949,139.4,139.31,17.0138]
[1642458894506,1.93638949,139.4,139.31,11.0138]
[1642458897510,0.26,139.4,139.31,11.0138]
[1642458897708,0.26,139.4,139.31,17.0138]
[1642458897909,4.32284907,139.42,139.31,17.0138]
[1642458898511,14.82554907,139.42,139.31,17.0138]
[1642458898915,55.39446063,139.45,139.31,17.0138]
[1642458898916,4.06284907,139.43,139.31,17.0138]
[1642458899913,4.06284907,139.45,139.31,17.0138]
[1642458900115,4.06284907,139.45,139.32,23.4387]
[1642458900314,4.06284907,139.45,139.35,10.7606]
[1642458900717,4.06284907,139.45,139.36,0.25]
[1642458900916,10.7606,139.44,139.36,0.25]
[1642458901316,11.0206,139.44,139.36,0.25]
[1642458901915,11.0206,139.44,139.34,0.25]
[1642458902517,11.0206,139.44,139.36,10.7611]
[1642458902918,11.0206,139.44,139.32,23.4387]
[1642458903118,11.0206,139.44,139.32,29.4387]
[1642458903920,11.0206,139.44,139.32,23.4387]
[1642458904122,0.25,139.43,139.32,29.4387]
[1642458904322,10.7627,139.42,139.34,10.7628]
[1642458904622,10.2627,139.42,139.34,10.7628]
[1642458904820,10.5227,139.42,139.34,10.7628]
[1642458905522,10.5227,139.42,139.32,34.2024]
[1642458908253,10.5227,139.42,139.33,0.25]
[1642458908653,10.5227,139.42,139.34,10.7629]
[1642458909853,82.9427,139.42,139.33,10.7636]
[1642458911163,4.06284907,139.4,139.34,0.25]
[1642458911558,4.06284907,139.4,139.34,11.0127]
[1642458911761,4.06284907,139.4,139.34,10.7627]
[1642458912058,14.82584907,139.41,139.34,10.7627]
[1642458912557,15.08584907,139.41,139.34,10.7627]
[1642458913259,14.82584907,139.41,139.34,10.7627]
[1642458914260,14.82584907,139.41,139.35,0.25]
[1642458914560,14.82584907,139.41,139.35,11.0121]
[1642458915163,4.06284907,139.41,139.35,10.7621]
[1642458915363,4.32284907,139.41,139.35,10.7621]
[1642458917164,4.06284907,139.4,139.35,10.7621]
[1642458917369,4.32284907,139.4,139.35,10.7621]
[1642458919167,0.26,139.4,139.35,10.7621]
[1642458919367,4.32284907,139.41,139.35,10.7621]
[1642458919567,4.06284907,139.41,139.35,10.7621]
[1642458921068,4.06284907,139.41,139.35,16.7621]
[1642458921769,4.06284907,139.41,139.36,0.25]
[1642458921970,2.04666271,139.4,139.37,10.7583]
[1642458922269,0.20946271,139.4,139.38,6.06439994]
[1642458922672,0.20946271,139.4,139.38,12.06439994]
[1642458923073,4.06284907,139.44,139.38,12.06439994]
[1642458923573,4.06284907,139.44,139.39,10.758]
[1642458923773,4.06284907,139.45,139.39,16.758]
[1642458924573,4.06284907,139.45,139.39,10.758]
[1642458924773,4.32284907,139.45,139.39,10.758]
[1642458924975,4.32284907,139.45,139.38,10.7599]
[1642458925873,8.15674555,139.44,139.38,10.7599]
[1642458926773,4.06284907,139.44,139.38,10.7599]
[1642458927373,4.32284907,139.44,139.38,10.7599]
[1642458927574,4.06284907,139.44,139.38,10.7599]
[1642458927773,8.15674555,139.44,139.38,16.7599]
[1642458928385,8.15674555,139.44,139.38,10.7599]
[1642458928573,8.15674555,139.44,139.38,16.7599]
[1642458928774,4.06284907,139.45,139.38,16.7599]
[1642458928974,0.26,139.44,139.38,16.7599]
[1642458929177,4.32284907,139.45,139.38,16.7599]
[1642458930675,4.06284907,139.45,139.38,16.7599]
[1642458931477,8.15562422,139.45,139.38,16.7599]
[1642458932180,8.41562422,139.45,139.38,16.7599]
[1642458932379,4.32284907,139.45,139.38,16.7599]
[1642458932580,4.06284907,139.45,139.38,16.7599]
[1642458932779,4.06284907,139.45,139.39,0.25]
[1642458932980,4.06284907,139.45,139.4,10.7568]
[1642458933408,4.06284907,139.45,139.4,16.7568]
[1642458934216,4.06284907,139.46,139.4,16.7568]
[1642458934410,4.06284907,139.46,139.4,41.5714]
[1642458935210,4.06284907,139.47,139.42,10.7554]
[1642458936011,4.06284907,139.47,139.42,18.59063885]
[1642458936210,4.06284907,139.47,139.43,0.25]
[1642458936411,4.06284907,139.47,139.44,10.7525]
[1642458936610,4.06284907,139.47,139.45,6.06439994]
[1642458937010,4.907e-05,139.47,139.45,6.06439994]
[1642458937212,4.907e-05,139.49,139.45,6.32439994]
[1642458937413,4.907e-05,139.49,139.46,10.7524]
[1642458937612,4.907e-05,139.49,139.46,11.0024]
[1642458937812,6.09756063,139.53,139.47,6.06439994]
[1642458938514,6.09756063,139.53,139.48,10.7511]
[1642458938714,6.09756063,139.55,139.48,10.7511]
[1642458938915,6.09756063,139.55,139.48,16.7511]
[1642458939516,10.1900521,139.55,139.48,16.7511]
[1642458939716,10.1900521,139.55,139.48,83.1711]
[1642458939919,10.1900521,139.55,139.49,0.25]
[1642458940117,10.1900521,139.55,139.5,10.7489]
[1642458940316,10.1900521,139.55,139.5,18.58039032]
[1642458940516,10.1900521,139.55,139.51,1.57149032]
[1642458940916,10.1900521,139.55,139.51,1.83149032]
[1642458941317,6.09756063,139.57,139.51,1.83149032]
[1642458941521,6.09756063,139.57,139.52,12.31969032]
[1642458941721,6.09756063,139.57,139.53,72.42]
[1642458941920,6.09756063,139.57,139.53,73.99149032]
[1642458942117,6.09756063,139.57,139.53,80.25149032]
[1642458942517,6.09756063,139.57,139.53,7.83149032]
[1642458943119,4.09249147,139.6,139.54,10.9958]
[1642458943318,4.09249147,139.6,139.54,10.7458]
[1642458943518,4.09249147,139.6,139.54,18.31729032]
[1642458943919,4.09249147,139.6,139.54,12.31729032]
[1642458944120,4.09249147,139.6,139.54,18.31729032]
[1642458944321,4.09249147,139.6,139.55,0.25]
[1642458944624,4.09249147,139.6,139.56,10.7442]
[1642458946523,4.09249147,139.6,139.56,12.31569032]
[1642458946924,4.09249147,139.6,139.56,18.57569032]
[1642458947325,4.09249147,139.6,139.56,18.31569032]
[1642458947526,4.09249147,139.6,139.56,16.7442]
[1642458948526,0.3,139.61,139.56,16.7442]
[1642458949130,4.08844007,139.6,139.56,16.7442]
[1642458952732,4.08844007,139.6,139.57,0.25]
[1642458952933,4.08844007,139.6,139.58,16.80849994]
[1642458953633,4.08844007,139.6,139.58,13.77629997]
[1642458954134,4.08844007,139.6,139.59,3.03219997]
[1642458954734,4.08844007,139.6,139.59,13.77559997]
[1642458955236,0.3,139.61,139.59,13.77559997]
[1642458955436,0.3,139.61,139.6,3.03219997]
[1642458956137,0.3,139.61,139.59,13.77559997]
[1642458956737,0.3,139.61,139.6,3.03219997]
[1642458956937,0.3,139.61,139.55,35.8137]
[1642458956938,4.3883046,139.61,139.55,35.8137]
[1642458957138,4.3883046,139.61,139.54,1.57149032]
[1642458957438,4.6483046,139.61,139.53,24.0191]
[1642458957640,4.0883046,139.6,139.53,24.0191]
[1642458957938,4.3483046,139.6,139.53,24.0191]
[1642458958139,4.3483046,139.6,139.53,30.0191]
[1642458958346,4.0883046,139.6,139.53,30.0191]
[1642458958540,4.0883046,139.6,139.54,10.7465]
[1642458959841,4.3483046,139.6,139.54,10.7465]
[1642458960940,4.0883046,139.59,139.54,10.7465]
[1642458961443,4.3483046,139.59,139.54,10.7465]
[1642458965547,4.34843207,139.6,139.54,10.7465]
[1642458966846,4.08843207,139.59,139.54,10.7465]
[1642458967249,4.34843207,139.59,139.54,10.7465]
[1642458968355,4.08843207,139.59,139.54,12.31799032]
[1642458968548,0.3,139.61,139.54,12.31799032]
[1642458968749,11.0466,139.61,139.54,12.31799032]
[1642458968949,11.0466,139.61,139.55,0.25]
[1642458969350,11.0466,139.61,139.54,12.31799032]
[1642458969552,4.08813638,139.6,139.54,12.31799032]
[1642458970559,14.83533638,139.6,139.54,10.7465]
[1642458971257,15.09533638,139.6,139.54,10.7465]
[1642458971458,11.0072,139.6,139.54,10.7465]
[1642458972358,10.7472,139.6,139.54,12.31799032]
[1642458972758,11.0462,139.61,139.54,12.31799032]
[1642458975589,4.08811854,139.6,139.54,12.31799032]
[1642458975790,4.08811854,139.6,139.55,10.9968]
[1642458976009,14.83501854,139.6,139.55,10.9968]
[1642458976190,14.83501854,139.6,139.55,1.82149032]
[1642458976591,11.0069,139.6,139.55,1.82149032]
[1642458976993,11.0069,139.6,139.55,1.57149032]
[1642458977193,11.0069,139.6,139.51,1.57149032]
[1642458977393,11.0069,139.6,139.48,35.8305]
[1642458977692,11.0069,139.6,139.48,7.57344129]
[1642458978094,72.42,139.59,139.48,7.57344129]
[1642458978294,10.7508,139.56,139.5,10.7504]
[1642458978498,10.7508,139.56,139.48,7.57344129]
[1642458978695,11.0108,139.56,139.5,1.57344129]
[1642458980401,11.0108,139.56,139.54,4.0]
[1642458980598,6.06439994,139.55,139.54,4.0]
[1642458980801,6.32439994,139.55,139.54,4.0]
[1642458981001,17.07609994,139.55,139.54,4.0]
[1642458981599,16.81609994,139.55,139.54,4.0]
[1642458981800,10.7517,139.55,139.54,4.0]
[1642458982000,6.06439994,139.55,139.54,4.0]
[1642458983505,3.03219997,139.55,139.54,4.0]
[1642458983904,3.29219997,139.55,139.54,4.0]
[1642458984104,6.32439994,139.55,139.54,4.0]
[1642458986707,6.06439994,139.55,139.54,4.0]
[1642458986911,3.03219997,139.55,139.54,4.0]
[1642458987111,10.75,139.58,139.54,4.0]
[1642458988612,36.1346,139.61,139.54,4.0]
[1642458988811,0.25,139.6,139.54,4.0]
[1642458989012,108.5546,139.61,139.54,4.0]
[1642458989511,4.07475581,139.6,139.54,4.0]
[1642458989812,4.58475581,139.6,139.54,4.0]
[1642458990512,10.7496,139.59,139.54,4.0]
[1642458990713,83.1696,139.59,139.54,4.0]
[1642458990914,0.25,139.58,139.54,4.0]
[1642458992615,10.753,139.57,139.54,4.0]
[1642458992814,72.42,139.55,139.54,4.0]
[1642458993215,0.26,139.55,139.54,4.0]
[1642458993414,6.06439994,139.56,139.54,4.0]
[1642458993618,16.81559994,139.56,139.54,4.0]
[1642458993816,6.06439994,139.56,139.54,4.0]
[1642458994118,3.03219997,139.56,139.54,4.0]
[1642458994517,72.42,139.6,139.54,4.0]
[1642458994718,10.7502,139.59,139.54,4.0]
[1642458995518,11.0102,139.59,139.54,4.0]
[1642458996918,10.7502,139.59,139.54,4.0]
[1642458998220,11.0102,139.59,139.54,4.0]
[1642458998824,10.7502,139.59,139.54,4.0]
[1642458999021,10.748,139.6,139.54,4.0]
[1642458999222,0.3,139.61,139.54,4.0]
[1642459000324,11.0473,139.61,139.54,14.7478]
[1642459000725,11.3073,139.61,139.54,14.7478]
[1642459001746,0.56,139.61,139.54,14.7478]
[1642459002146,0.3,139.61,139.54,14.7478]
[1642459005248,0.3,139.61,139.55,0.25]
[1642459005448,0.3,139.61,139.55,10.9971]
[1642459005849,11.0471,139.61,139.55,10.9971]
[1642459006051,11.3071,139.61,139.55,10.9971]
[1642459006554,0.56,139.61,139.55,10.9971]
[1642459006950,0.3,139.61,139.55,10.9971]
[1642459011354,0.3,139.61,139.55,12.57344246]
[1642459012152,0.3,139.61,139.55,36.76544246]
[1642459015954,0.3,139.61,139.55,35.1891]
[1642459018756,0.3,139.61,139.55,36.76544246]
[1642459019354,0.3,139.61,139.55,42.76544246]
[1642459019559,0.3,139.61,139.55,41.1891]
[1642459023264,0.3,139.61,139.55,40.9391]
[1642459024766,0.3,139.61,139.56,0.25]
[1642459024969,0.3,139.61,139.56,10.9923]
[1642459025465,0.3,139.61,139.56,16.9923]
[1642459028169,0.3,139.61,139.56,16.7423]
[1642459029172,0.3,139.61,139.56,18.31864246]
[1642459029775,0.3,139.61,139.58,10.7377]
[1642459030175,0.3,139.61,139.59,0.25]
[1642459030478,0.3,139.61,139.57,6.25]
[1642459030974,0.3,139.61,139.58,1.57634246]
[1642459031172,0.18040667,139.67,139.58,1.57634246]
[1642459031173,0.18040667,139.67,139.6,10.7379]
[1642459031373,0.18040667,139.67,139.61,0.25]
[1642459032377,0.18040667,139.67,139.61,1.82634246]
[1642459032574,0.18040667,139.67,139.62,10.7339]
[1642459032774,0.18040667,139.67,139.62,41.8158]
[1642459032976,0.18040667,139.67,139.62,43.39214246]
[1642459033176,0.18040667,139.67,139.62,54.82513206]
[1642459033578,4.08606976,139.69,139.62,54.82513206]
[1642459033776,6.09756063,139.72,139.62,54.82513206]
[1642459033975,6.09756063,139.72,139.62,61.58390903]
[1642459034376,4.0842846,139.73,139.62,61.58390903]
[1642459034603,4.0842846,139.73,139.62,134.00390903]
[1642459035203,31.40774524,139.85,139.68,10.7251]
[1642459035403,72.42,139.86,139.69,46.595]
[1642459035600,72.42,139.86,139.69,48.17566578]
[1642459035801,72.42,139.86,139.7,1.58066578]
[1642459036202,6.12495282,139.8,139.71,23.5919]
[1642459036402,6.12495282,139.8,139.71,29.5919]
[1642459036599,6.12495282,139.8,139.71,31.43256578]
[1642459036799,6.12495282,139.8,139.71,25.43256578]
[1642459037000,6.12495282,139.8,139.71,31.43256578]
[1642459037401,6.12495282,139.8,139.71,42.86555538]
[1642459037802,16.53234725,139.9,139.71,42.86555538]
[1642459038202,4.08132398,139.85,139.71,42.86555538]
[1642459038504,4.08132398,139.85,139.71,50.41155458]
[1642459038903,4.08132398,139.85,139.74,0.30663655]
[1642459039306,4.08132398,139.85,139.75,11.4329896]
[1642459039803,4.08132398,139.85,139.76,1.83066578]
[1642459040003,0.03791311,139.91,139.76,1.83066578]
[1642459040205,0.03791311,139.91,139.77,48.3809]
[1642459040507,0.03791311,139.91,139.78,0.25]
[1642459040704,0.03791311,139.91,139.78,1.83066578]
[1642459040903,0.03791311,139.91,139.79,23.4647]
[1642459041404,0.03791311,139.91,139.8,0.25]
[1642459043008,0.03791311,139.91,139.8,1.83066578]
[1642459043207,2.03977805,139.87,139.8,1.83066578]
[1642459043507,2.03977805,139.87,139.8,8.09066578]
[1642459043708,0.03791311,139.91,139.8,8.09066578]
[1642459044007,0.03791311,139.91,139.8,32.79978498]
[1642459044206,0.03791311,139.91,139.8,40.34578418]
[1642459044605,0.03791311,139.91,139.81,22.6388]
[1642459044810,0.03791311,139.91,139.82,0.25]
[1642459045009,0.03791311,139.91,139.82,1.83947456]
[1642459045208,0.03791311,139.91,139.83,1.58947456]
[1642459045411,0.03791311,139.91,139.84,0.25]
[1642459045609,0.03791311,139.91,139.84,44.3577]
[1642459045811,0.03791311,139.91,139.85,1.58947456]
[1642459046508,0.03791311,139.91,139.84,44.3577]
[1642459046708,0.03791311,139.91,139.84,45.95006638]
[1642459048015,0.03791311,139.91,139.85,0.25]
[1642459048415,0.03791311,139.91,139.85,1.59236638]
[1642459050816,0.03791311,139.91,139.84,44.3577]
[1642459051218,0.03791311,139.91,139.84,45.95295024]
[1642459052221,0.03791311,139.91,139.85,0.25]
[1642459052919,0.03791311,139.91,139.84,45.95295024]
[1642459053356,0.03791311,139.91,139.81,25.03815024]
[1642459053721,0.03791311,139.91,139.81,1.59525024]
[1642459053921,0.03791311,139.91,139.8,11.4329896]
[1642459054423,14.84381852,139.91,139.8,11.4329896]
[1642459054622,23.19481852,139.91,139.8,11.4329896]
[1642459055425,23.19481852,139.91,139.77,11.4329896]
[1642459055725,23.45481852,139.91,139.77,11.4329896]
[1642459055929,0.25,139.9,139.77,13.02823984]
[1642459056126,10.7309,139.87,139.77,13.02823984]
[1642459056327,10.9909,139.87,139.78,0.25]
[1642459057227,10.9909,139.87,139.77,7.59525024]
[1642459057528,10.9909,139.87,139.78,1.59525024]
[1642459057929,10.9909,139.87,139.78,7.59525024]
[1642459059228,10.9909,139.87,139.79,0.25]
[1642459059627,10.9909,139.87,139.79,1.84556709]
[1642459061230,10.9909,139.87,139.79,1.59556709]
[1642459064237,10.7309,139.87,139.79,1.59556709]
[1642459066339,10.9909,139.87,139.79,1.59556709]
[1642459068765,10.9909,139.87,139.8,0.25]
[1642459069165,10.9909,139.87,139.81,1.60719669]
[1642459070067,10.7309,139.87,139.81,1.60719669]
[1642459071266,10.9909,139.87,139.81,1.60719669]
[1642459072567,10.9909,139.87,139.8,0.25]
[1642459072767,10.9909,139.87,139.79,1.61155504]
[1642459073770,4.08075926,139.86,139.79,1.61155504]
[1642459073966,10.731,139.84,139.79,1.61155504]
[1642459074369,10.991,139.84,139.79,1.61155504]
[1642459079674,10.731,139.84,139.76,1.60769598]
[1642459079872,10.731,139.84,139.76,7.60769598]
[1642459080672,10.731,139.84,139.76,6.0]
[1642459080873,10.731,139.84,139.75,54.91134364]
[1642459080874,10.731,139.84,139.77,1.85769598]
[1642459081078,10.7288,139.86,139.77,1.60769598]
[1642459081274,10.7288,139.86,139.78,0.25]
[1642459082074,10.7288,139.86,139.78,1.85769598]
[1642459082275,10.9888,139.86,139.78,7.85769598]
[1642459083076,0.26,139.86,139.78,7.85769598]
[1642459083276,36.0226,139.9,139.78,7.85769598]
[1642459083483,0.25,139.89,139.78,7.85769598]
[1642459084183,4.08026569,139.88,139.78,7.85769598]
[1642459084384,4.34026569,139.88,139.78,7.85769598]
[1642459084584,10.7281,139.87,139.78,7.85769598]
[1642459084785,10.9881,139.87,139.78,7.85769598]
[1642459085788,10.4881,139.87,139.78,7.85769598]
[1642459086888,10.4881,139.87,139.78,7.60769598]
[1642459087088,10.4881,139.87,139.78,6.0]
[1642459087389,10.4881,139.87,139.77,39.8559]
[1642459087890,10.4881,139.87,139.77,29.1283]
[1642459089491,10.4881,139.87,139.78,0.25]
[1642459091397,10.4881,139.87,139.78,1.85769598]
[1642459091593,10.4881,139.87,139.78,1.60769598]
[1642459091795,10.4881,139.87,139.79,0.25]
[1642459092196,16.4881,139.87,139.79,0.25]
[1642459092495,10.4881,139.87,139.78,1.60769598]
[1642459092694,0.25,139.86,139.78,1.60769598]
[1642459092894,10.732,139.84,139.78,1.60769598]
[1642459093396,10.992,139.84,139.78,1.60769598]
[1642459093894,10.992,139.84,139.75,1.60769598]
[1642459094696,10.992,139.84,139.74,23.7285]
[1642459094898,10.992,139.84,139.74,29.7285]
[1642459095098,10.992,139.84,139.74,23.7285]
[1642459096900,10.7335,139.81,139.73,10.8854]
[1642459097196,10.7335,139.81,139.75,1.60769598]
[1642459097398,10.9935,139.81,139.73,16.8854]
[1642459099601,10.9935,139.81,139.73,27.6173]
[1642459100098,10.7335,139.81,139.73,27.6173]
[1642459100297,10.7305,139.82,139.74,0.25]
[1642459100699,10.7305,139.82,139.75,10.7305]
[1642459100898,6.12202616,139.89,139.76,0.25]
[1642459101102,35.7649,139.87,139.76,0.25]
[1642459101303,10.7296,139.84,139.75,6.0]
[1642459101502,10.7296,139.84,139.76,1.85769598]
[1642459101702,10.7296,139.84,139.76,7.85769598]
[1642459101903,10.7296,139.84,139.76,6.25]
[1642459102205,10.7296,139.84,139.76,43.10719598]
[1642459103302,10.9896,139.84,139.76,41.4995]
[1642459103903,10.7296,139.84,139.76,35.4995]
[1642459105209,10.9896,139.84,139.76,41.4995]
[1642459105607,10.9896,139.84,139.76,35.4995]
[1642459106008,10.9896,139.84,139.76,41.4995]
[1642459106408,10.9896,139.84,139.76,35.4995]
[1642459106607,10.9896,139.84,139.76,41.4995]
[1642459106808,10.9896,139.84,139.76,35.4995]
[1642459107811,10.9896,139.84,139.76,41.2495]
[1642459108008,10.9896,139.84,139.76,35.2495]
[1642459108809,10.9896,139.84,139.76,41.2495]
[1642459109009,10.9896,139.84,139.76,35.2495]
[1642459109209,10.9896,139.84,139.76,41.2495]
[1642459109411,10.9896,139.84,139.78,10.729]
[1642459110034,10.7283,139.85,139.78,10.729]
[1642459110238,10.7283,139.85,139.78,16.729]
[1642459111039,10.7274,139.86,139.78,18.33669598]
[1642459111240,10.7274,139.86,139.8,10.7274]
[1642459111840,8.7,139.89,139.81,0.25]
[1642459112741,8.7,139.89,139.8,7.60769598]
[1642459112943,8.7,139.89,139.81,0.25]
[1642459113543,10.7265,139.88,139.81,10.9762]
[1642459113945,10.7265,139.88,139.81,16.9762]
[1642459114243,10.7265,139.88,139.81,16.7262]
[1642459114444,10.9865,139.88,139.81,16.7262]
[1642459115242,10.9865,139.88,139.81,10.7262]
[1642459115645,10.9865,139.88,139.81,16.7262]
[1642459119048,10.9865,139.88,139.81,10.7262]
[1642459119251,10.9865,139.88,139.81,16.7262]
[1642459120753,0.26,139.88,139.83,10.7254]
[1642459121154,10.9854,139.89,139.83,10.7254]
[1642459121354,10.9854,139.89,139.83,16.7254]
[1642459122858,10.9854,139.89,139.82,10.9762]
[1642459123064,10.9854,139.89,139.82,10.7262]
[1642459123260,0.26,139.89,139.82,16.7262]
[1642459123659,10.7246,139.9,139.82,16.7262]
[1642459123859,10.9846,139.9,139.82,16.7262]
[1642459125860,10.9846,139.9,139.84,10.7247]
[1642459126260,10.9846,139.9,139.84,16.7247]
[1642459126661,10.9846,139.9,139.84,10.7247]
[1642459126861,10.9846,139.9,139.84,16.7247]
[1642459128386,10.9846,139.9,139.84,6.0]
[1642459128563,10.9846,139.9,139.83,10.7253]
[1642459128765,10.9846,139.9,139.84,0.25]
[1642459128964,0.26,139.9,139.84,0.25]
[1642459129165,0.26,139.9,139.84,22.8827]
[1642459129368,0.03791311,139.91,139.84,28.8827]
[1642459130167,0.03791311,139.91,139.85,10.7222]
[1642459130368,0.03791311,139.91,139.85,16.7222]
[1642459130770,0.03791311,139.91,139.86,0.25]
[1642459130971,0.03791311,139.91,139.86,23.7118]
[1642459131373,0.03791311,139.91,139.86,29.7118]
[1642459131572,0.03791311,139.91,139.87,10.7205]
[1642459131774,0.03791311,139.91,139.88,0.25]
[1642459132777,0.03791311,139.91,139.89,10.7196]
[1642459133277,0.03791311,139.91,139.9,0.25]
[1642459133878,0.03791311,139.91,139.9,10.9681]
[1642459134075,0.03791311,139.91,139.9,16.9681]
[1642459134678,0.03791311,139.91,139.9,41.5382]
[1642459137305,0.03791311,139.91,139.9,35.5382]
[1642459137905,0.03791311,139.91,139.9,41.5382]
[1642459142211,0.03791311,139.91,139.9,35.5382]
[1642459143615,0.03791311,139.91,139.9,35.2882]
[1642459144814,0.03791311,139.91,139.9,35.5382]
[1642459146018,0.03791311,139.91,139.9,41.5382]
[1642459146217,0.03791311,139.91,139.9,35.5382]
[1642459146418,0.03791311,139.91,139.9,24.8201]
[1642459146616,0.03791311,139.91,139.9,30.8201]
[1642459146817,0.03791311,139.91,139.9,24.8201]
[1642459147218,0.03791311,139.91,139.9,30.8201]
[1642459147416,0.35903079,139.94,139.9,24.5701]
[1642459148117,0.35903079,139.94,139.9,26.17778259]
[1642459148922,0.35903079,139.94,139.91,0.25]
[1642459149123,6.06439994,139.93,139.91,0.25]
[1642459149728,0.35903079,139.94,139.91,0.25]
[1642459150629,11.08063079,139.94,139.91,0.25]
[1642459151829,6.06439994,139.93,139.91,0.25]
[1642459152230,16.78709994,139.93,139.91,0.25]
[1642459152632,13.75489997,139.93,139.91,1.85768259]
[1642459152830,10.7227,139.93,139.91,1.85768259]
[1642459153631,0.0001,139.93,139.91,1.85768259]
[1642459154434,3.03229997,139.93,139.91,1.85768259]
[1642459154659,13.75499997,139.93,139.91,1.85768259]
[1642459155153,10.7228,139.93,139.91,1.85768259]
[1642459155352,10.7228,139.93,139.91,1.60768259]
[1642459155555,3.03219997,139.92,139.9,24.5701]
[1642459155752,10.7228,139.93,139.89,1.60822839]
[1642459156156,10.9828,139.93,139.89,1.60822839]
[1642459156555,17.7251,139.9,139.89,1.60822839]
[1642459156753,21.01729997,139.9,139.89,1.60822839]
[1642459156955,17.9851,139.9,139.87,36.42195804]
[1642459157156,17.9851,139.9,139.87,24.1224]
[1642459157356,17.9851,139.9,139.84,21.03778563]
[1642459158357,17.9851,139.9,139.84,19.42955724]
[1642459158758,17.9851,139.9,139.85,0.25]
[1642459158959,17.9851,139.9,139.84,21.03778563]
[1642459160057,17.9851,139.9,139.84,19.42955724]
[1642459161060,7.26,139.9,139.85,0.25]
[1642459161465,7.26,139.9,139.85,1.85822839]
[1642459162260,7.26,139.9,139.85,1.60822839]
[1642459163662,7.26,139.9,139.84,19.42955724]
[1642459164562,7.26,139.9,139.85,0.25]
[1642459164760,7.26,139.9,139.84,19.42955724]
[1642459165861,17.9853,139.9,139.84,19.42955724]
[1642459166262,17.9853,139.9,139.85,1.60822839]
[1642459166461,17.9853,139.9,139.84,12.29955804]
[1642459168464,17.9853,139.9,139.83,24.6307]
[1642459168665,17.9853,139.9,139.84,0.25]
[1642459169065,17.9853,139.9,139.83,26.66095221]
[1642459169470,17.9853,139.9,139.83,24.6307]
[1642459171074,17.9853,139.9,139.83,26.66095221]
[1642459171273,17.9853,139.9,139.83,32.66095221]
[1642459171474,17.9853,139.9,139.83,26.66095221]
[1642459171674,17.9853,139.9,139.84,0.25]
[1642459172574,17.9853,139.9,139.83,43.38585221]
[1642459172773,17.9853,139.9,139.84,0.25]
[1642459173974,7.26,139.9,139.84,0.25]
[1642459175578,7.26,139.9,139.84,2.28025221]
[1642459176575,7.26,139.9,139.84,3.88449051]
[1642459177580,7.26,139.9,139.84,2.03025221]
[1642459178280,7.26,139.9,139.83,37.38585221]
[1642459178580,7.26,139.9,139.83,44.99009051]
[1642459178780,7.26,139.9,139.83,57.25353744]
[1642459178980,17.9856,139.9,139.83,57.25353744]
[1642459179180,17.9856,139.9,139.84,2.03025221]
[1642459180083,17.9856,139.9,139.83,40.52863744]
[1642459180283,24.1516,139.9,139.83,46.52863744]
[1642459181181,24.1516,139.9,139.83,40.52863744]
[1642459181381,24.1516,139.9,139.84,0.25]
[1642459182688,24.1516,139.9,139.84,1.6042383]
[1642459182987,23.8916,139.9,139.83,38.92439914]
[1642459183187,23.8916,139.9,139.83,36.89414693]
[1642459183388,23.8916,139.9,139.83,24.6307]
[1642459183991,23.8916,139.9,139.83,30.6307]
[1642459184191,24.1516,139.9,139.83,30.6307]
[1642459184393,24.1516,139.9,139.83,24.6307]
[1642459184994,23.8916,139.9,139.83,24.6307]
[1642459185491,17.7256,139.9,139.83,24.6307]
[1642459186192,17.7256,139.9,139.83,35.3559]
[1642459186392,17.9856,139.9,139.83,24.6307]
[1642459186592,20.02479816,139.9,139.83,24.6307]